bitfinex/quotes_BTCUSD_20250206
["timestamp","ask_amount","ask_price","bid_price","bid_amount"]
[1738856571991,0.00446383,97316.0,97315.0,0.40664165]
[1738856572415,0.00046383,97316.0,97315.0,0.40664165]
[1738856572616,8.3e-07,97316.0,97315.0,0.42964165]
[1738856572822,8.3e-07,97316.0,97315.0,0.73964165]
[1738856573183,0.08191895,97336.0,97327.0,0.304119]
[1738856573184,4.3e-07,97328.0,97327.0,0.304119]
[1738856573388,0.00013952,97328.0,97327.0,0.40662265]
[1738856575058,0.00013952,97328.0,97327.0,0.25662265]
[1738856575263,0.00013952,97328.0,97327.0,0.26062265]
[1738856575480,0.00013952,97328.0,97327.0,0.158119]
[1738856575891,0.00013952,97328.0,97327.0,0.154119]
[1738856576104,0.00013952,97328.0,97292.0,0.10856]
[1738856576308,0.00013952,97328.0,97327.0,0.15]
[1738856576514,0.00013952,97328.0,97327.0,0.25250365]
[1738856576723,0.00013952,97328.0,97327.0,0.25650365]
[1738856576898,0.00013952,97328.0,97327.0,0.154]
[1738856577933,0.00013952,97328.0,97327.0,0.15]
[1738856578139,0.00013952,97328.0,97327.0,0.153]
[1738856578348,0.00013952,97328.0,97327.0,0.003]
[1738856578709,0.00013952,97328.0,97325.0,0.154122]
[1738856578911,0.00013952,97328.0,97327.0,0.003]
[1738856579521,0.00013952,97328.0,97304.0,0.15]
[1738856579720,0.00013952,97328.0,97327.0,0.154119]
[1738856580351,0.00013952,97328.0,97325.0,0.003]
[1738856580505,0.08191895,97326.0,97325.0,0.003]
[1738856580706,0.08191895,97326.0,97260.0,0.19186383]
[1738856580707,0.1275,97325.0,97260.0,0.19186383]
[1738856580910,0.15415,97308.0,97290.0,0.154177]
[1738856581115,0.14990365,97307.0,97275.0,0.10250365]
[1738856581514,0.02076771,97298.0,97278.0,0.15]
[1738856581759,0.0474,97307.0,97279.0,0.10353154]
[1738856581964,0.0474,97307.0,97306.0,0.154152]
[1738856582767,0.0474,97307.0,97271.0,0.205609]
[1738856583108,0.19163997,97300.0,97290.0,0.154178]
[1738856583264,0.19163997,97300.0,97282.0,0.00046383]
[1738856583265,0.19163997,97300.0,97283.0,0.205585]
[1738856583474,0.19163997,97300.0,97287.0,0.154182]
[1738856583683,0.19163997,97300.0,97282.0,0.00046383]
[1738856584091,0.19163997,97300.0,97284.0,0.154186]
[1738856584297,0.19163997,97300.0,97282.0,0.00046383]
[1738856584298,0.0792,97298.0,97282.0,0.00046383]
[1738856584586,0.154188,97284.0,97282.0,0.00046383]
[1738856585026,0.21223754,97292.0,97282.0,0.00046383]
[1738856585191,0.10250365,97291.0,97282.0,0.00146383]
[1738856585401,0.03616412,97290.0,97282.0,0.00146383]
[1738856585607,0.03616412,97290.0,97282.0,0.00046383]
[1738856585608,0.10250365,97289.0,97282.0,0.00046383]
[1738856585949,0.002,97284.0,97282.0,0.00046383]
[1738856586147,0.18380365,97283.0,97282.0,0.00046383]
[1738856586385,0.18380365,97283.0,97260.0,0.00022386]
[1738856586386,0.023,97282.0,97260.0,0.00022386]
[1738856586586,0.01,97278.0,97270.0,0.00036304]
[1738856586793,0.10250365,97277.0,97270.0,0.00036304]
[1738856587257,0.154205,97273.0,97270.0,0.00036304]
[1738856587463,0.10250365,97277.0,97275.0,0.154201]
[1738856587861,0.00903299,97284.0,97275.0,0.1542]
[1738856588063,0.10250365,97282.0,97270.0,0.00036304]
[1738856588265,0.19163997,97280.0,97270.0,0.00036304]
[1738856588479,0.02065309,97276.0,97270.0,0.00036304]
[1738856588693,0.10250365,97275.0,97270.0,0.00036304]
[1738856588907,0.154207,97272.0,97270.0,0.00036304]
[1738856589116,0.10250365,97271.0,97270.0,0.00036304]
[1738856589648,0.02065309,97276.0,97270.0,0.00036304]
[1738856589892,0.10250365,97275.0,97270.0,0.00036304]
[1738856590087,0.154203,97274.0,97270.0,0.00036304]
[1738856590245,0.02065309,97276.0,97270.0,0.00036304]
[1738856590443,0.02065309,97276.0,97274.0,0.154202]
[1738856591059,0.0353684,97276.0,97270.0,0.00136304]
[1738856591274,0.10250365,97275.0,97270.0,0.00136304]
[1738856591469,0.0353684,97276.0,97270.0,0.00036304]
[1738856591470,0.02065309,97276.0,97270.0,0.00036304]
[1738856591693,0.10250365,97275.0,97270.0,0.00036304]
[1738856592339,0.154207,97272.0,97270.0,0.00036304]
[1738856592537,0.17136072,97271.0,97270.0,0.00036304]
[1738856593146,0.10250365,97271.0,97270.0,0.00036304]
[1738856593345,0.001,97275.0,97273.0,0.154205]
[1738856593552,0.10250365,97274.0,97270.0,0.00036304]
[1738856593729,0.154208,97271.0,97270.0,0.00036304]
[1738856593937,0.26671165,97271.0,97270.0,0.00036304]
[1738856594114,0.17236102,97271.0,97270.0,0.00036304]
[1738856595130,0.10250365,97271.0,97270.0,0.00036304]
[1738856595549,0.10250365,97271.0,97260.0,0.00022386]
[1738856595550,0.01,97267.0,97260.0,0.00022386]
[1738856595751,0.154224,97261.0,97260.0,0.00022386]
[1738856595992,0.25672765,97261.0,97260.0,0.00022386]
[1738856596430,0.52242765,97261.0,97260.0,0.00022386]
[1738856596638,0.52242765,97261.0,97247.0,0.0001067]
[1738856596639,0.154244,97248.0,97247.0,0.0001067]
[1738856596859,0.10250365,97248.0,97247.0,0.0001067]
[1738856597063,0.25674765,97248.0,97247.0,0.0001067]
[1738856597270,0.27743647,97248.0,97247.0,0.0001067]
[1738856597992,0.12419247,97248.0,97247.0,0.0001067]
[1738856598329,0.02168882,97248.0,97247.0,0.0001067]
[1738856598534,0.12419247,97248.0,97247.0,0.0001067]
[1738856598736,0.02168882,97248.0,97247.0,0.1543527]
[1738856598933,0.02068882,97248.0,97247.0,0.0001067]
[1738856599504,0.29492935,97248.0,97247.0,0.0001067]
[1738856599654,0.34402935,97248.0,97247.0,0.0001067]
[1738856600314,0.34502935,97248.0,97247.0,0.0001067]
[1738856600688,0.34402935,97248.0,97247.0,0.0001067]
[1738856601106,0.37802935,97248.0,97247.0,0.0001067]
[1738856601318,0.93322935,97248.0,97247.0,0.0001067]
[1738856601514,0.93322935,97248.0,97191.0,0.205778]
[1738856601515,0.19163997,97231.0,97214.0,0.20573]
[1738856601737,0.10250365,97230.0,97221.0,0.0002459]
[1738856601939,0.09432294,97247.0,97221.0,0.0002459]
[1738856602139,0.19163997,97240.0,97221.0,0.0002459]
[1738856602357,0.02025162,97228.0,97227.0,0.154278]
[1738856602515,0.10250365,97239.0,97238.0,0.15426]
[1738856602867,0.12340968,97239.0,97238.0,0.15426]
[1738856603290,0.12340968,97239.0,97225.0,0.205707]
[1738856603494,0.27766868,97239.0,97226.0,0.154278]
[1738856603699,0.002,97231.0,97230.0,0.154273]
[1738856604076,0.02090603,97239.0,97230.0,0.154273]
[1738856604235,0.02090603,97239.0,97223.0,0.20571]
[1738856604438,0.02090603,97239.0,97230.0,0.205696]
[1738856604643,0.02090603,97239.0,97235.0,0.154264]
[1738856604861,0.02090603,97239.0,97238.0,0.15426]
[1738856605272,0.02090603,97239.0,97234.0,0.205687]
[1738856605273,0.02290603,97239.0,97223.0,0.205712]
[1738856605538,0.02290603,97239.0,97221.0,0.0002459]
[1738856605807,0.02290603,97239.0,97238.0,0.15426]
[1738856606342,0.02090603,97239.0,97238.0,0.15426]
[1738856606749,0.02290603,97239.0,97238.0,0.15426]
[1738856607128,0.09099218,97258.0,97240.0,0.205675]
[1738856607327,0.02092347,97242.0,97227.0,0.205703]
[1738856607585,0.02092347,97242.0,97240.0,0.154257]
[1738856609153,0.02092347,97242.0,97236.0,0.205683]
[1738856609358,0.12342712,97242.0,97213.0,0.205732]
[1738856609489,0.01234271,97241.0,97240.0,0.154256]
[1738856609698,0.00643034,97241.0,97240.0,0.154256]
[1738856610314,0.00643034,97241.0,97239.0,0.154258]
[1738856610544,0.00643034,97241.0,97240.0,0.001]
[1738856611003,0.01671888,97241.0,97240.0,0.001]
[1738856611219,0.01671888,97241.0,97239.0,0.154258]
[1738856611659,0.01671888,97241.0,97240.0,0.25250365]
[1738856611858,0.01671888,97241.0,97240.0,0.15]
[1738856612325,0.01671888,97241.0,97240.0,0.3043637]
[1738856612537,0.19163997,97250.0,97240.0,0.0001067]
[1738856612851,0.2035866,97249.0,97240.0,0.0001067]
[1738856613447,0.0764,97246.0,97240.0,0.0001067]
[1738856613683,0.10250365,97245.0,97240.0,0.0001067]
[1738856613897,0.154252,97244.0,97240.0,0.0001067]
[1738856614099,0.25675665,97243.0,97240.0,0.0011067]
[1738856614311,0.154255,97241.0,97240.0,0.0011067]
[1738856614514,0.10250365,97241.0,97240.0,0.0001067]
[1738856614753,0.2771635,97241.0,97240.0,0.0001067]
[1738856615459,0.29388301,97241.0,97240.0,0.0001067]
[1738856615579,0.13962801,97241.0,97240.0,0.0001067]
[1738856615988,0.17665591,97241.0,97240.0,0.0001067]
[1738856616185,0.13962801,97241.0,97240.0,0.0001067]
[1738856617606,0.14062801,97241.0,97240.0,0.0001067]
[1738856618433,0.03712436,97241.0,97240.0,0.0001067]
[1738856618647,0.01671951,97241.0,97240.0,0.0001067]
[1738856618815,0.01771951,97241.0,97240.0,0.0001067]
[1738856619559,0.01771951,97241.0,97240.0,0.1543637]
[1738856619986,0.01671951,97241.0,97240.0,0.1543637]
[1738856620303,0.01671951,97241.0,97240.0,0.0001067]
[1738856620506,0.27347816,97241.0,97240.0,0.0001067]
[1738856620701,0.32139288,97241.0,97240.0,0.0001067]
[1738856621485,0.45109288,97241.0,97240.0,0.0001067]
[1738856621665,0.47409288,97241.0,97240.0,0.0001067]
[1738856621888,0.47509288,97241.0,97240.0,0.0001067]
[1738856622026,0.27292316,97241.0,97240.0,0.0001067]
[1738856622227,0.26278717,97241.0,97239.0,0.15423069]
[1738856622432,0.10250365,97240.0,97239.0,0.15423069]
[1738856622666,0.03058352,97241.0,97239.0,0.15423069]
[1738856622930,0.01771951,97241.0,97239.0,0.15423069]
[1738856623468,0.01671951,97241.0,97239.0,0.15423069]
[1738856623694,0.01671951,97241.0,97240.0,0.154257]
[1738856623891,0.01971951,97241.0,97217.0,0.15]
[1738856624072,0.01971951,97241.0,97197.0,0.07912407]
[1738856624073,0.00643058,97240.0,97233.0,0.154267]
[1738856624268,0.01636786,97239.0,97225.0,0.205706]
[1738856624491,0.10250365,97239.0,97219.0,0.15]
[1738856624726,0.10250365,97239.0,97235.0,0.154264]
[1738856624868,0.10250365,97239.0,97228.0,0.205701]
[1738856625192,0.2057,97229.0,97214.0,0.154298]
[1738856625366,0.15427,97232.0,97220.0,0.154288]
[1738856625567,0.10250365,97232.0,97218.0,0.154291]
[1738856625792,0.10250365,97232.0,97219.0,0.15429]
[1738856625991,0.10250365,97232.0,97206.0,0.00022407]
[1738856626162,0.10250365,97232.0,97230.0,0.154273]
[1738856626354,0.10250365,97232.0,97227.0,0.154277]
[1738856626580,0.205697,97230.0,97206.0,0.00022407]
[1738856626785,0.205702,97228.0,97211.0,0.205736]
[1738856627006,0.154284,97223.0,97215.0,0.154296]
[1738856627293,0.10250365,97222.0,97207.0,0.205746]
[1738856627506,0.27978965,97222.0,97206.0,0.00022407]
[1738856627710,0.27978965,97222.0,97172.0,0.00013594]
[1738856627711,0.0472,97206.0,97172.0,0.00013594]
[1738856627917,0.0472,97206.0,97190.0,0.154336]
[1738856627918,0.0762,97197.0,97190.0,0.154336]
[1738856628099,0.10250365,97196.0,97194.0,0.154329]
[1738856628360,0.0472,97206.0,97205.0,0.154313]
[1738856628570,0.14970365,97206.0,97183.0,0.205795]
[1738856628777,0.28748891,97205.0,97183.0,0.205795]
[1738856628973,0.154315,97204.0,97195.0,0.154327]
[1738856629178,0.10250365,97203.0,97189.0,0.154337]
[1738856629389,0.10250365,97203.0,97183.0,0.205796]
[1738856629390,0.19163997,97200.0,97183.0,0.205796]
[1738856629586,0.154333,97192.0,97172.0,6.331e-05]
[1738856629736,0.19163997,97193.0,97184.0,0.205795]
[1738856629737,0.13710095,97191.0,97184.0,0.205795]
[1738856629939,0.13710095,97191.0,97183.0,0.0004636]
[1738856630357,0.154345,97185.0,97183.0,0.0004636]
[1738856630566,0.205782,97190.0,97183.0,0.0004636]
[1738856630567,0.10250365,97184.0,97183.0,0.0004636]
[1738856630788,0.13679194,97184.0,97183.0,0.0004636]
[1738856630993,0.10250365,97184.0,97183.0,0.0004636]
[1738856631603,0.11922414,97184.0,97183.0,0.0004636]
[1738856631777,0.36149329,97184.0,97183.0,0.0024636]
[1738856631986,0.41089329,97184.0,97183.0,0.0024636]
[1738856632568,0.25654729,97184.0,97183.0,0.0024636]
[1738856632790,0.42376423,97184.0,97183.0,0.0024636]
[1738856632997,0.42376423,97184.0,97183.0,6.82e-05]
[1738856633354,0.44540763,97184.0,97183.0,6.82e-05]
[1738856633735,0.44440763,97184.0,97183.0,6.82e-05]
[1738856633943,0.53346542,97184.0,97183.0,6.82e-05]
[1738856634220,0.29006163,97184.0,97183.0,6.82e-05]
[1738856634546,0.29206163,97184.0,97183.0,6.82e-05]
[1738856634753,0.15,97175.0,97162.0,0.0001067]
[1738856634954,0.154379,97163.0,97162.0,0.0001067]
[1738856635228,0.42232055,97163.0,97162.0,0.0001067]
[1738856635452,0.50372055,97163.0,97162.0,0.0001067]
[1738856635840,0.19934155,97163.0,97162.0,0.0001067]
[1738856636078,0.18390365,97163.0,97118.0,0.205932]
[1738856636266,0.10250365,97162.0,97119.0,0.15102955]
[1738856636470,0.1973,97159.0,97115.0,0.00925404]
[1738856636687,0.00868262,97150.0,97135.0,0.205897]
[1738856636861,0.10250365,97149.0,97110.0,0.19163997]
[1738856637066,0.01317308,97148.0,97113.0,0.00912859]
[1738856637272,0.02922719,97150.0,97143.0,0.154411]
[1738856637478,0.10250365,97149.0,97144.0,0.00540637]
[1738856637713,0.10250365,97149.0,97144.0,0.00525183]
[1738856637913,0.13209508,97149.0,97144.0,0.00525183]
[1738856638130,0.01526397,97148.0,97126.0,0.205917]
[1738856638271,0.01526397,97148.0,97131.0,0.154429]
[1738856638272,0.154406,97146.0,97131.0,0.154429]
[1738856638475,0.154411,97143.0,97131.0,0.154429]
[1738856638678,0.25691465,97143.0,97090.0,0.004]
[1738856638900,0.351427,97133.0,97090.0,0.004]
[1738856639151,0.53303065,97133.0,97105.0,0.154471]
[1738856639362,0.53303065,97133.0,97110.0,0.154463]
[1738856639478,0.15,97132.0,97090.0,0.004]
[1738856639680,0.19163997,97120.0,97104.0,0.154473]
[1738856639885,0.15,97130.0,97117.0,0.154451]
[1738856639886,0.12166765,97119.0,97117.0,0.154451]
[1738856640125,0.12166765,97119.0,97113.0,0.205944]
[1738856640126,0.12166765,97119.0,97090.0,0.00499822]
[1738856640333,0.12166765,97119.0,97114.0,0.154456]
[1738856640511,0.12166765,97119.0,97090.0,0.00499822]
[1738856640512,0.08191895,97117.0,97092.0,0.20599]
[1738856640704,0.10250365,97116.0,97092.0,0.20599]
[1738856640955,0.0254004,97115.0,97114.0,0.154457]
[1738856641180,0.10250365,97115.0,97114.0,0.154457]
[1738856641398,0.002,97119.0,97115.0,0.154456]
[1738856641399,0.04888256,97116.0,97115.0,0.154456]
[1738856641610,0.04888256,97116.0,97113.0,0.154458]
[1738856641836,0.04888256,97116.0,97090.0,0.004]
[1738856641837,0.04888256,97116.0,97114.0,0.154457]
[1738856642047,0.11056776,97115.0,97090.0,0.00499822]
[1738856642245,0.11056776,97115.0,97094.0,0.205984]
[1738856642481,0.22207814,97115.0,97098.0,0.205977]
[1738856642690,0.22207814,97115.0,97090.0,0.00499822]
[1738856642691,0.08191895,97105.0,97090.0,0.00499822]
[1738856642895,0.19163997,97110.0,97092.0,0.154491]
[1738856642896,0.02075387,97099.0,97092.0,0.154491]
[1738856643120,0.12325752,97099.0,97090.0,0.004]
[1738856643294,0.1148294,97098.0,97096.0,0.154485]
[1738856643624,0.10250365,97098.0,97096.0,0.154485]
[1738856643803,0.0208772,97106.0,97105.0,0.154471]
[1738856644035,0.02959143,97115.0,97114.0,0.154457]
[1738856644242,0.00046286,97119.0,97118.0,0.154451]
[1738856644443,0.00046286,97119.0,97118.0,0.304451]
[1738856644760,0.03834627,97129.0,97128.0,0.154435]
[1738856644957,0.03834627,97129.0,97128.0,0.304435]
[1738856645166,0.03834627,97129.0,97128.0,0.49421002]
[1738856645443,0.03834627,97129.0,97128.0,0.51492984]
[1738856645659,0.03834627,97129.0,97128.0,0.53792984]
[1738856645881,0.01673638,97147.0,97146.0,0.304406]
[1738856646087,0.01673638,97147.0,97146.0,0.41231423]
[1738856646509,0.0698154,97188.0,97170.0,0.154368]
[1738856646510,0.049,97188.0,97170.0,0.154368]
[1738856646711,0.1246,97201.0,97170.0,0.30971222]
[1738856646921,0.0452,97201.0,97185.0,0.154344]
[1738856647126,0.00955256,97210.0,97197.0,0.154325]
[1738856647323,0.0208669,97215.0,97197.0,0.154325]
[1738856647529,0.12921895,97220.0,97216.0,0.154295]
[1738856647736,0.08191895,97230.0,97216.0,0.154295]
[1738856647737,0.10250365,97219.0,97216.0,0.154295]
[1738856647963,0.0002245,97232.0,97231.0,0.154271]
[1738856648241,0.0002245,97232.0,97231.0,0.304271]
[1738856648495,0.0002245,97232.0,97231.0,0.30942825]
[1738856648900,0.0002245,97232.0,97231.0,0.15942825]
[1738856649056,0.0002245,97232.0,97231.0,0.00515725]
[1738856649057,0.00068793,97232.0,97231.0,0.00515725]
[1738856649263,0.00068793,97232.0,97231.0,0.154271]
[1738856649480,0.00068793,97232.0,97231.0,0.17837662]
[1738856649664,0.00068793,97232.0,97231.0,0.17937662]
[1738856649867,0.00068793,97232.0,97231.0,0.02510562]
[1738856650289,0.00068793,97232.0,97231.0,0.17410562]
[1738856650557,0.00068793,97232.0,97231.0,0.17510562]
[1738856650933,0.00068793,97232.0,97231.0,0.17613402]
[1738856651135,0.00068793,97232.0,97231.0,0.17510562]
[1738856651367,0.00068793,97232.0,97231.0,0.2786377]
[1738856651644,0.00068793,97232.0,97231.0,0.27760927]
[1738856651842,0.00068793,97232.0,97231.0,0.12660927]
[1738856652012,0.00068793,97232.0,97231.0,0.02510562]
[1738856652403,0.00068793,97232.0,97231.0,0.00610925]
[1738856652603,0.00068793,97232.0,97231.0,0.00613761]
[1738856652851,0.00068793,97232.0,97231.0,0.00810925]
[1738856653467,0.00068793,97232.0,97231.0,0.00510925]
[1738856653873,0.21304037,97232.0,97231.0,0.0060692]
[1738856654125,0.36731037,97232.0,97231.0,0.0060692]
[1738856654258,0.20579158,97232.0,97231.0,0.001]
[1738856655210,0.20579158,97232.0,97197.0,0.205767]
[1738856655211,0.18279158,97232.0,97197.0,0.205767]
[1738856655425,0.12550365,97231.0,97196.0,0.15]
[1738856655637,0.12550365,97231.0,97207.0,0.154308]
[1738856655785,0.023,97229.0,97197.0,0.00516578]
[1738856655987,0.023,97227.0,97208.0,0.00515113]
[1738856656264,0.02047877,97222.0,97197.0,0.205767]
[1738856656437,0.02047877,97222.0,97165.0,0.01]
[1738856656438,0.10250365,97221.0,97209.0,0.00515573]
[1738856656699,0.03529824,97220.0,97166.0,0.205833]
[1738856656893,0.023,97218.0,97178.0,0.205807]
[1738856657080,0.023,97216.0,97211.0,0.154302]
[1738856657270,0.1844226,97215.0,97212.0,0.154301]
[1738856657476,0.1844226,97215.0,97212.0,0.00514819]
[1738856657477,0.10250365,97215.0,97212.0,0.00514819]
[1738856657670,0.08191895,97238.0,97212.0,0.00514819]
[1738856658043,0.08191895,97238.0,97191.0,0.15]
[1738856658044,0.10250365,97231.0,97191.0,0.15]
[1738856658218,0.00022408,97261.0,97231.0,0.154271]
[1738856658219,0.00068793,97232.0,97231.0,0.154271]
[1738856658556,0.00068793,97232.0,97231.0,0.15937147]
[1738856658965,0.01382862,97232.0,97231.0,0.00510047]
[1738856659168,0.13933227,97232.0,97231.0,0.00510047]
[1738856659376,0.023,97231.0,97202.0,0.205757]
[1738856659616,0.10319158,97232.0,97210.0,0.154304]
[1738856659617,0.023,97229.0,97210.0,0.154304]
[1738856659828,0.023,97227.0,97203.0,0.1594868]
[1738856660018,0.023,97225.0,97211.0,0.0051507]
[1738856660407,0.0100526,97232.0,97180.0,0.29591773]
[1738856660408,0.023,97221.0,97187.0,0.205788]
[1738856660644,0.023,97219.0,97190.0,0.15]
[1738856660861,0.10250365,97218.0,97191.0,0.20578]
[1738856661059,0.10250365,97218.0,97191.0,0.00520096]
[1738856661401,0.10250365,97218.0,97210.0,0.154303]
[1738856661600,0.10250365,97218.0,97209.0,0.154306]
[1738856661803,0.01156342,97217.0,97211.0,0.00513927]
[1738856662002,0.11406707,97217.0,97210.0,0.00514178]
[1738856662224,0.10250365,97217.0,97190.0,0.15]
[1738856662445,0.01,97244.0,97190.0,0.15]
[1738856662446,0.29591773,97260.0,97192.0,0.15]
[1738856662624,0.00909431,97242.0,97230.0,0.154272]
[1738856662824,0.03009205,97242.0,97213.0,0.00102849]
[1738856663022,0.03682862,97232.0,97231.0,0.00508904]
[1738856663251,0.023,97231.0,97180.0,0.29591773]
[1738856663426,0.177271,97231.0,97201.0,0.154318]
[1738856663650,0.023,97231.0,97185.0,0.15]
[1738856663852,0.0002245,97220.0,97203.0,0.205754]
[1738856664210,0.0002245,97220.0,97190.0,0.29591773]
[1738856664211,0.0002245,97220.0,97214.0,0.154297]
[1738856664437,0.0002245,97220.0,97204.0,0.0051546]
[1738856664438,0.001,97217.0,97204.0,0.0051546]
[1738856664690,0.001,97217.0,97215.0,0.15942297]
[1738856664838,0.0002245,97220.0,97219.0,0.15429]
[1738856665032,0.0002245,97220.0,97190.0,0.29591773]
[1738856665033,0.0002245,97220.0,97216.0,0.00512427]
[1738856665258,0.10250365,97219.0,97191.0,0.20578]
[1738856665489,0.0826245,97220.0,97192.0,0.15518424]
[1738856665691,0.0796245,97220.0,97192.0,0.15518424]
[1738856665895,0.0002245,97220.0,97216.0,0.154295]
[1738856666104,0.0022245,97220.0,97212.0,0.205734]
[1738856666259,0.0022245,97220.0,97208.0,0.205744]
[1738856666260,0.0022245,97220.0,97213.0,0.1543]
[1738856666612,0.0022245,97220.0,97214.0,0.154298]
[1738856666824,0.0022245,97220.0,97213.0,0.15943047]
[1738856667031,0.0022245,97220.0,97215.0,0.00512645]
[1738856667264,0.0022245,97220.0,97218.0,0.154292]
[1738856667466,0.0002245,97220.0,97219.0,0.00102853]
[1738856667678,0.0032245,97220.0,97219.0,0.00511516]
[1738856668131,0.0002245,97220.0,97219.0,0.00511516]
[1738856668334,0.0002245,97220.0,97219.0,0.00511015]
[1738856668550,0.0022245,97220.0,97207.0,0.205745]
[1738856668757,0.0022245,97220.0,97219.0,0.15940015]
[1738856668958,0.0002245,97220.0,97219.0,0.15429]
[1738856669165,0.0002245,97220.0,97219.0,0.00469092]
[1738856669373,0.0022245,97220.0,97219.0,0.00469092]
[1738856669578,0.0022245,97220.0,97207.0,0.0010286]
[1738856669785,0.0022245,97220.0,97219.0,0.15933093]
[1738856669997,0.0022245,97220.0,97219.0,0.15429]
[1738856670199,0.0022245,97220.0,97219.0,0.1593308]
[1738856670419,0.0002245,97220.0,97219.0,0.41286298]
[1738856670667,0.0002245,97220.0,97219.0,0.41183445]
[1738856670877,0.0002245,97220.0,97219.0,0.1593308]
[1738856670878,0.0012245,97220.0,97219.0,0.1593308]
[1738856671088,0.0012245,97220.0,97219.0,0.0050408]
[1738856671302,0.0002245,97220.0,97219.0,0.0050408]
[1738856671509,0.0002245,97220.0,97219.0,0.001]
[1738856671724,0.0002245,97220.0,97219.0,0.00603929]
[1738856671939,0.0002245,97220.0,97219.0,0.15706779]
[1738856672151,0.0002245,97220.0,97219.0,0.15503929]
[1738856672379,0.0002245,97220.0,97219.0,0.00503929]
[1738856672791,0.0002245,97220.0,97219.0,0.15429]
[1738856672998,0.0002245,97220.0,97219.0,0.0050224]
[1738856673203,0.0488,97239.0,97219.0,0.0050224]
[1738856673405,0.11763046,97238.0,97219.0,0.00046343]
[1738856673614,0.10250365,97238.0,97219.0,0.00046343]
[1738856674647,0.10250365,97238.0,97220.0,0.00501988]
[1738856674845,0.10450365,97238.0,97220.0,0.00501988]
[1738856675050,0.10450365,97238.0,97219.0,0.00046343]
[1738856675255,0.1138096,97238.0,97223.0,0.154284]
[1738856675457,0.1138096,97238.0,97219.0,0.00046343]
[1738856675458,0.0488,97239.0,97226.0,0.205705]
[1738856675667,0.0488,97239.0,97224.0,0.00500984]
[1738856675868,0.0488,97239.0,97227.0,0.00500617]
[1738856676275,0.0488,97239.0,97229.0,0.19200912]
[1738856676480,0.00022408,97247.0,97236.0,0.154263]
[1738856676653,0.00022408,97247.0,97231.0,0.205695]
[1738856676859,0.00022408,97247.0,97229.0,0.19200912]
[1738856676860,0.00022408,97247.0,97237.0,0.00498106]
[1738856677065,0.00022408,97247.0,97230.0,0.154272]
[1738856677265,0.10272773,97247.0,97238.0,0.00497855]
[1738856677426,0.10272773,97247.0,97219.0,0.00046343]
[1738856677427,0.003,97238.0,97221.0,0.205716]
[1738856677622,0.003,97238.0,97219.0,0.00046343]
[1738856677828,0.10250365,97246.0,97222.0,0.00500554]
[1738856678104,0.00022408,97247.0,97233.0,0.154267]
[1738856678315,0.00022408,97247.0,97220.0,0.19200912]
[1738856678316,0.00940988,97251.0,97235.0,0.205687]
[1738856678444,0.1289,97305.0,97254.0,0.01]
[1738856678645,0.1289,97305.0,97260.0,0.337225]
[1738856678646,0.08984349,97297.0,97260.0,0.337225]
[1738856678829,0.08984349,97297.0,97257.0,0.15]
[1738856679045,0.08984349,97297.0,97270.0,0.19200912]
[1738856679396,0.08984349,97297.0,97280.0,0.19200912]
[1738856679601,0.08984349,97297.0,97271.0,0.00591393]
[1738856679602,0.08984349,97297.0,97272.0,0.154206]
[1738856679823,0.08998256,97297.0,97271.0,0.15]
[1738856680026,0.11055258,97297.0,97271.0,0.15]
[1738856680211,0.08998256,97297.0,97273.0,0.04983901]
[1738856681383,0.08998256,97297.0,97264.0,0.154218]
[1738856681734,0.023,97296.0,97260.0,0.19200912]
[1738856682133,0.023,97296.0,97258.0,0.154228]
[1738856682134,0.023,97293.0,97258.0,0.154228]
[1738856682346,0.07637454,97288.0,97260.0,0.19200912]
[1738856682554,0.07283282,97288.0,97259.0,0.304227]
[1738856682764,0.22701482,97288.0,97259.0,0.15]
[1738856682966,0.07283282,97288.0,97260.0,0.19200912]
[1738856683173,0.07283282,97288.0,97251.0,0.15424]
[1738856683377,0.07283282,97288.0,97250.0,0.19200912]
[1738856683516,0.154186,97285.0,97252.0,0.15]
[1738856683694,0.07283282,97288.0,97257.0,0.15423]
[1738856683899,0.07283282,97288.0,97260.0,0.19200912]
[1738856684127,0.01671174,97287.0,97260.0,0.19200912]
[1738856684478,0.01671174,97287.0,97174.0,0.041163]
[1738856684479,0.023,97283.0,97234.0,0.10250365]
[1738856684882,0.228583,97284.0,97240.0,0.19200912]
[1738856685089,0.1953,97285.0,97240.0,0.19200912]
[1738856685090,0.0453,97285.0,97260.0,0.19200912]
[1738856685255,0.008724,97274.0,97260.0,0.19200912]
[1738856685437,0.008724,97274.0,97268.0,0.154212]
[1738856685642,0.008724,97274.0,97250.0,0.19200912]
[1738856685841,0.008724,97274.0,97268.0,0.205617]
[1738856686043,0.008724,97274.0,97272.0,0.154205]
[1738856686243,0.01671174,97273.0,97272.0,0.25670865]
[1738856686975,0.01671174,97273.0,97250.0,0.19200912]
[1738856687177,0.01671174,97273.0,97265.0,0.154217]
[1738856687370,0.00932977,97292.0,97261.0,0.15]
[1738856687614,0.001,97274.0,97259.0,0.154225]
[1738856687762,0.001,97274.0,97266.0,0.154215]
[1738856688118,0.154195,97279.0,97253.0,0.154235]
[1738856688255,0.10250365,97278.0,97252.0,0.205651]
[1738856688455,0.001,97273.0,97265.0,0.154217]
[1738856688649,0.001,97273.0,97243.0,0.08191895]
[1738856688650,0.001,97273.0,97260.0,0.19200912]
[1738856688864,0.01028415,97287.0,97262.0,0.154221]
[1738856689058,0.11897249,97286.0,97260.0,0.19200912]
[1738856689303,0.002,97279.0,97250.0,0.19200912]
[1738856689507,0.002,97279.0,97243.0,0.09140244]
[1738856689508,0.0814,97276.0,97243.0,0.08191895]
[1738856689734,0.10250365,97275.0,97248.0,0.154243]
[1738856689941,0.02015951,97271.0,97243.0,0.08191895]
[1738856690247,0.023,97269.0,97230.0,0.19200912]
[1738856690449,0.023,97267.0,97230.0,0.19200912]
[1738856690584,0.023,97265.0,97232.0,0.08294729]
[1738856690835,0.02513632,97270.0,97257.0,0.154229]
[1738856691058,0.003,97287.0,97242.0,0.00102823]
[1738856691272,0.09191895,97309.0,97266.0,0.154216]
[1738856691273,0.0814,97276.0,97266.0,0.154216]
[1738856691448,0.0814,97276.0,97268.0,0.154213]
[1738856691449,0.01671445,97269.0,97268.0,0.154213]
[1738856691650,0.02071445,97269.0,97268.0,0.154213]
[1738856692059,0.00013901,97276.0,97275.0,0.154202]
[1738856692581,0.00313901,97276.0,97275.0,0.154202]
[1738856692988,0.00313901,97276.0,97263.0,0.154221]
[1738856693103,0.00313901,97276.0,97264.0,0.154218]